[Event "Late-Titled-Tuesday-Blitz-May-07-2024"]
[Site "Chess.com"]
[Date "2024.05.07"]
[Round "7"]
[White "SergioMoralesG"]
[Black "Olkaa"]
[Result "1-0"]
[WhiteElo "2483"]
[BlackElo "2606"]
[TimeControl "180+1"]
[EndTime "15:17:04 PDT"]
[Termination "SergioMoralesG won by checkmate"]

1. d4 {[%clk 0:03:00.9]} 1... Nf6 {[%clk 0:02:58.9]} 2. c4 {[%clk 0:03:01]} 2...
c5 {[%clk 0:02:59.1]} 3. d5 {[%clk 0:03:00.8]} 3... b5 {[%clk 0:02:58.8]} 4.
cxb5 {[%clk 0:03:01.7]} 4... a6 {[%clk 0:02:58.8]} 5. bxa6 {[%clk 0:03:02.6]}
5... g6 {[%clk 0:02:58.9]} 6. Nc3 {[%clk 0:03:03.1]} 6... Bg7 {[%clk 0:02:59.3]}
7. e4 {[%clk 0:03:02.2]} 7... O-O {[%clk 0:02:59.9]} 8. Nf3 {[%clk 0:03:00.9]}
8... Qa5 {[%clk 0:02:59.6]} 9. e5 {[%clk 0:02:57.2]} 9... Ne4 {[%clk 0:02:44.2]}
10. Bd2 {[%clk 0:02:56.5]} 10... Nxd2 {[%clk 0:02:41.6]} 11. Qxd2 {[%clk
0:02:56.7]} 11... d6 {[%clk 0:02:36]} 12. Be2 {[%clk 0:02:38.8]} 12... dxe5
{[%clk 0:02:22.6]} 13. O-O {[%clk 0:02:36.9]} 13... Nxa6 {[%clk 0:02:10.4]} 14.
Rfe1 {[%clk 0:02:33]} 14... f5 {[%clk 0:01:53.3]} 15. Bxa6 {[%clk 0:02:27]}
15... Qxa6 {[%clk 0:01:32.1]} 16. Nxe5 {[%clk 0:02:24.9]} 16... Bb7 {[%clk
0:01:27.7]} 17. Nd7 {[%clk 0:02:09]} 17... Qd6 {[%clk 0:01:03.7]} 18. Nxf8
{[%clk 0:02:01.5]} 18... Rxf8 {[%clk 0:01:04.6]} 19. Re6 {[%clk 0:01:54.4]}
19... Qd7 {[%clk 0:01:01]} 20. Rae1 {[%clk 0:01:48.2]} 20... Rf7 {[%clk
0:00:48.8]} 21. d6 {[%clk 0:01:36.8]} 21... Bf8 {[%clk 0:00:32.1]} 22. Nd5
{[%clk 0:01:23.6]} 22... Bxd5 {[%clk 0:00:18.7]} 23. Qxd5 {[%clk 0:01:13.7]}
23... exd6 {[%clk 0:00:18.9]} 24. h4 {[%clk 0:00:59.5]} 24... Kg7 {[%clk
0:00:17.4]} 25. b3 {[%clk 0:00:50.1]} 25... Qa7 {[%clk 0:00:16.5]} 26. a4 {[%clk
0:00:49.7]} 26... Be7 {[%clk 0:00:11]} 27. g3 {[%clk 0:00:47.1]} 27... Qc7
{[%clk 0:00:07.6]} 28. Qc4 {[%clk 0:00:44.2]} 28... Bf8 {[%clk 0:00:07.4]} 29.
h5 {[%clk 0:00:41.9]} 29... gxh5 {[%clk 0:00:06.1]} 30. Qh4 {[%clk 0:00:41.3]}
30... Kg8 {[%clk 0:00:03.5]} 31. Qxh5 {[%clk 0:00:40.5]} 31... f4 {[%clk
0:00:03.9]} 32. g4 {[%clk 0:00:39.5]} 32... f3 {[%clk 0:00:03.6]} 33. Re8 {[%clk
0:00:38]} 33... c4 {[%clk 0:00:03.2]} 34. Qg5+ {[%clk 0:00:34.1]} 34... Rg7
{[%clk 0:00:02.6]} 35. Qd5+ {[%clk 0:00:34.7]} 35... Rf7 {[%clk 0:00:02.8]} 36.
bxc4 {[%clk 0:00:29.7]} 36... Qd7 {[%clk 0:00:03]} 37. R1e4 {[%clk 0:00:21.5]}
37... Qxa4 {[%clk 0:00:02.4]} 38. Qg5+ {[%clk 0:00:20.4]} 38... Kh8 {[%clk
0:00:01.5]} 39. R4e7 {[%clk 0:00:13.6]} 39... Qd1+ {[%clk 0:00:01.6]} 40. Kh2
{[%clk 0:00:13.4]} 40... Qf1 {[%clk 0:00:01.9]} 41. Rxf8+ {[%clk 0:00:12.6]}
41... Rxf8 {[%clk 0:00:01.4]} 42. Qg7# {[%clk 0:00:13.4]} 1-0

[Event "Late-Titled-Tuesday-Blitz-May-07-2024"]
[Site "Chess.com"]
[Date "2024.05.07"]
[Round "7"]
[White "Nf3c5"]
[Black "bascheyaro"]
[Result "1-0"]
[WhiteElo "2639"]
[BlackElo "2817"]
[TimeControl "180+1"]
[EndTime "15:17:05 PDT"]
[Termination "Nf3c5 won on time"]

1. e4 {[%clk 0:03:00.9]} 1... e6 {[%clk 0:03:00.4]} 2. d4 {[%clk 0:02:59.9]}
2... d5 {[%clk 0:03:01]} 3. Nd2 {[%clk 0:03:00.1]} 3... c5 {[%clk 0:03:01]} 4.
exd5 {[%clk 0:03:00]} 4... exd5 {[%clk 0:03:01.9]} 5. Ngf3 {[%clk 0:02:59.3]}
5... Nc6 {[%clk 0:03:02.4]} 6. Bb5 {[%clk 0:02:59.5]} 6... c4 {[%clk 0:03:03]}
7. O-O {[%clk 0:02:55.4]} 7... Bd6 {[%clk 0:03:03.2]} 8. b3 {[%clk 0:02:50.2]}
8... cxb3 {[%clk 0:03:04.1]} 9. axb3 {[%clk 0:02:49.3]} 9... Ne7 {[%clk
0:03:04.1]} 10. Re1 {[%clk 0:02:21.4]} 10... O-O {[%clk 0:03:03.9]} 11. c3
{[%clk 0:02:12.8]} 11... Bf5 {[%clk 0:03:03.8]} 12. b4 {[%clk 0:02:09.7]} 12...
a6 {[%clk 0:03:02.9]} 13. Bf1 {[%clk 0:02:10.2]} 13... Rc8 {[%clk 0:03:02.8]}
14. Nb3 {[%clk 0:02:10.5]} 14... Nxb4 {[%clk 0:02:55.3]} 15. cxb4 {[%clk
0:00:51.6]} 15... Bc2 {[%clk 0:02:55.1]} 16. Qd2 {[%clk 0:00:51.9]} 16... Bxb3
{[%clk 0:02:55.3]} 17. Bd3 {[%clk 0:00:51]} 17... Bc4 {[%clk 0:02:45.2]} 18. Bc2
{[%clk 0:00:49.8]} 18... Qc7 {[%clk 0:02:38.4]} 19. Qg5 {[%clk 0:00:38]} 19...
Rfe8 {[%clk 0:02:34.7]} 20. Bxh7+ {[%clk 0:00:36.4]} 20... Kxh7 {[%clk
0:02:34.7]} 21. Qh5+ {[%clk 0:00:37]} 21... Kg8 {[%clk 0:02:35.4]} 22. Ng5
{[%clk 0:00:37.3]} 22... Ng6 {[%clk 0:02:35.4]} 23. Qh7+ {[%clk 0:00:32.5]}
23... Kf8 {[%clk 0:02:35.7]} 24. Be3 {[%clk 0:00:29.9]} 24... Bf4 {[%clk
0:02:17.7]} 25. Qh5 {[%clk 0:00:28.2]} 25... Bxg5 {[%clk 0:02:12.6]} 26. Bxg5
{[%clk 0:00:26.3]} 26... Rxe1+ {[%clk 0:02:09.1]} 27. Rxe1 {[%clk 0:00:27.2]}
27... Re8 {[%clk 0:02:09.4]} 28. Rc1 {[%clk 0:00:27.2]} 28... Kg8 {[%clk
0:02:05]} 29. h4 {[%clk 0:00:27.6]} 29... Qd6 {[%clk 0:02:02.1]} 30. Qf3 {[%clk
0:00:21.7]} 30... Qxb4 {[%clk 0:02:02]} 31. h5 {[%clk 0:00:21.2]} 31... Re1+
{[%clk 0:02:01.2]} 32. Kh2 {[%clk 0:00:16.2]} 32... Qd6+ {[%clk 0:02:00.6]} 33.
g3 {[%clk 0:00:16.2]} 33... Rxc1 {[%clk 0:02:00]} 34. hxg6 {[%clk 0:00:14.6]}
34... Re1 {[%clk 0:00:46]} 35. Qxf7+ {[%clk 0:00:06.8]} 35... Kh8 {[%clk
0:00:46.4]} 36. Qf5 {[%clk 0:00:06.9]} 36... Bf1 {[%clk 0:00:06.3]} 37. Qc8+
{[%clk 0:00:04.8]} 1-0

[Event "Late-Titled-Tuesday-Blitz-May-07-2024"]
[Site "Chess.com"]
[Date "2024.05.07"]
[Round "7"]
[White "WPWPWP-2015"]
[Black "simaopdias"]
[Result "1-0"]
[WhiteElo "2434"]
[BlackElo "2297"]
[TimeControl "180+1"]
[EndTime "15:17:07 PDT"]
[Termination "WPWPWP-2015 won by resignation"]

1. e4 {[%clk 0:03:00.9]} 1... c5 {[%clk 0:02:59.9]} 2. Nf3 {[%clk 0:03:00]} 2...
g6 {[%clk 0:03:00.2]} 3. Nc3 {[%clk 0:02:55]} 3... Bg7 {[%clk 0:03:00.5]} 4. Bc4
{[%clk 0:02:54.3]} 4... Nc6 {[%clk 0:02:59.6]} 5. O-O {[%clk 0:02:54.2]} 5... d6
{[%clk 0:02:59]} 6. d3 {[%clk 0:02:52.1]} 6... Nf6 {[%clk 0:02:58.9]} 7. Bg5
{[%clk 0:02:51]} 7... O-O {[%clk 0:02:58.7]} 8. Qd2 {[%clk 0:02:50.7]} 8... Bg4
{[%clk 0:02:58.5]} 9. Ne1 {[%clk 0:02:50.1]} 9... Ne5 {[%clk 0:02:41.6]} 10. Bb3
{[%clk 0:02:49.1]} 10... a5 {[%clk 0:02:33.2]} 11. a4 {[%clk 0:02:48.2]} 11...
Re8 {[%clk 0:02:29]} 12. f4 {[%clk 0:02:45.5]} 12... Nc6 {[%clk 0:02:28.8]} 13.
f5 {[%clk 0:02:44.3]} 13... Qb6 {[%clk 0:02:23.8]} 14. Kh1 {[%clk 0:02:39.2]}
14... Nd4 {[%clk 0:02:21]} 15. h3 {[%clk 0:02:37.8]} 15... Nxb3 {[%clk 0:02:04]}
16. cxb3 {[%clk 0:02:35.7]} 16... Bh5 {[%clk 0:01:59.7]} 17. g4 {[%clk 0:02:34]}
17... Qxb3 {[%clk 0:01:59.3]} 18. gxh5 {[%clk 0:02:25.2]} 18... Nxh5 {[%clk
0:01:58.7]} 19. Rg1 {[%clk 0:02:22.2]} 19... Bd4 {[%clk 0:01:55.4]} 20. Rg4
{[%clk 0:02:18.7]} 20... Kh8 {[%clk 0:01:48.3]} 21. Nf3 {[%clk 0:02:14.5]} 21...
Bg7 {[%clk 0:01:41.9]} 22. Rag1 {[%clk 0:02:06.5]} 22... e6 {[%clk 0:01:34.5]}
23. Rh4 {[%clk 0:01:45.5]} 23... exf5 {[%clk 0:01:33]} 24. exf5 {[%clk
0:01:16.5]} 24... Nf6 {[%clk 0:01:28.1]} 25. fxg6 {[%clk 0:01:12.3]} 25... fxg6
{[%clk 0:01:25.6]} 26. Bh6 {[%clk 0:01:06.3]} 26... Qg8 {[%clk 0:01:23.4]} 27.
Ng5 {[%clk 0:01:01.5]} 27... Re7 {[%clk 0:01:15.4]} 28. Bxg7+ {[%clk 0:00:38.8]}
28... Qxg7 {[%clk 0:01:10.5]} 29. Qf4 {[%clk 0:00:33.3]} 29... d5 {[%clk
0:01:06.1]} 30. Qd6 {[%clk 0:00:27.5]} 30... d4 {[%clk 0:00:57.4]} 31. Nce4
{[%clk 0:00:25.8]} 31... Nxe4 {[%clk 0:00:51.5]} 32. Nxe4 {[%clk 0:00:24.3]}
32... c4 {[%clk 0:00:42.8]} 33. Rxg6 {[%clk 0:00:21.6]} 33... Qf7 {[%clk
0:00:30.9]} 34. Rf6 {[%clk 0:00:21.5]} 34... Qg7 {[%clk 0:00:30.5]} 35. Ng5
{[%clk 0:00:15.4]} 35... Qxg5 {[%clk 0:00:24.9]} 36. Qxe7 {[%clk 0:00:15.3]}
36... Qc1+ {[%clk 0:00:20.2]} 37. Kg2 {[%clk 0:00:14.3]} 37... Rg8+ {[%clk
0:00:19.9]} 38. Rg4 {[%clk 0:00:14.3]} 38... Qd2+ {[%clk 0:00:19.2]} 39. Rf2
{[%clk 0:00:13.9]} 39... Rxg4+ {[%clk 0:00:19.2]} 40. hxg4 {[%clk 0:00:13.7]}
40... Qh6 {[%clk 0:00:10.6]} 41. Rf8+ {[%clk 0:00:12.9]} 1-0

[Event "Late-Titled-Tuesday-Blitz-May-07-2024"]
[Site "Chess.com"]
[Date "2024.05.07"]
[Round "7"]
[White "scandalgod"]
[Black "NMJeevanK"]
[Result "0-1"]
[WhiteElo "2531"]
[BlackElo "2765"]
[TimeControl "180+1"]
[EndTime "15:17:08 PDT"]
[Termination "NMJeevanK won by resignation"]

1. d4 {[%clk 0:02:56.4]} 1... g6 {[%clk 0:03:00.9]} 2. c4 {[%clk 0:02:55.2]}
2... d6 {[%clk 0:03:00.1]} 3. Nc3 {[%clk 0:02:55.6]} 3... Bg7 {[%clk 0:03:00.3]}
4. e4 {[%clk 0:02:55.8]} 4... e5 {[%clk 0:03:00.4]} 5. Be3 {[%clk 0:02:53.6]}
5... Nc6 {[%clk 0:02:52.9]} 6. d5 {[%clk 0:02:52.7]} 6... Nce7 {[%clk
0:02:51.8]} 7. Nf3 {[%clk 0:02:51.5]} 7... f5 {[%clk 0:02:50.5]} 8. Bd3 {[%clk
0:02:27.4]} 8... Nf6 {[%clk 0:02:46.8]} 9. O-O {[%clk 0:02:20]} 9... O-O {[%clk
0:02:46.5]} 10. Rc1 {[%clk 0:02:12.3]} 10... Ng4 {[%clk 0:02:34.9]} 11. Bg5
{[%clk 0:02:07.4]} 11... h6 {[%clk 0:02:33.4]} 12. Bd2 {[%clk 0:02:05.6]} 12...
f4 {[%clk 0:02:30.4]} 13. c5 {[%clk 0:02:02.3]} 13... g5 {[%clk 0:02:09.4]} 14.
cxd6 {[%clk 0:01:58.2]} 14... cxd6 {[%clk 0:02:10.3]} 15. Nb5 {[%clk 0:01:54.4]}
15... Nf6 {[%clk 0:02:04.3]} 16. Nc7 {[%clk 0:01:50.2]} 16... Rb8 {[%clk
0:02:04.1]} 17. Bb4 {[%clk 0:01:45.9]} 17... g4 {[%clk 0:02:01.7]} 18. Nh4
{[%clk 0:01:42.9]} 18... h5 {[%clk 0:01:46.2]} 19. Ne6 {[%clk 0:01:41.1]} 19...
Bxe6 {[%clk 0:01:44.5]} 20. dxe6 {[%clk 0:01:42]} 20... Qb6 {[%clk 0:01:33.3]}
21. Qb3 {[%clk 0:01:28.1]} 21... g3 {[%clk 0:01:29]} 22. Be1 {[%clk 0:01:07.1]}
22... gxh2+ {[%clk 0:01:24.3]} 23. Kxh2 {[%clk 0:01:02.8]} 23... Ng4+ {[%clk
0:01:24]} 24. Kg1 {[%clk 0:01:03]} 24... Qxb3 {[%clk 0:01:17]} 25. axb3 {[%clk
0:01:01.8]} 25... Nc6 {[%clk 0:01:10.5]} 26. Bc4 {[%clk 0:00:47.6]} 26... Kh7
{[%clk 0:01:04.6]} 27. Nf5 {[%clk 0:00:46.5]} 27... Nd4 {[%clk 0:00:37.7]} 28.
Nxd6 {[%clk 0:00:34]} 28... Rf6 {[%clk 0:00:32.9]} 29. Bc3 {[%clk 0:00:25.1]}
29... Nxe6 {[%clk 0:00:31.4]} 30. Nf5 {[%clk 0:00:24.2]} 30... Nd4 {[%clk
0:00:16.4]} 31. Nxd4 {[%clk 0:00:19.6]} 31... exd4 {[%clk 0:00:16.8]} 32. Bxd4
{[%clk 0:00:19.9]} 32... Rg6 {[%clk 0:00:17.3]} 33. Bxg7 {[%clk 0:00:19.3]}
33... Rxg7 {[%clk 0:00:18.2]} 34. Rfd1 {[%clk 0:00:18.1]} 34... Re8 {[%clk
0:00:16.4]} 35. Re1 {[%clk 0:00:16.2]} 35... Ne5 {[%clk 0:00:15.8]} 36. Bd5
{[%clk 0:00:15.8]} 36... Nf3+ {[%clk 0:00:16]} 37. Kf1 {[%clk 0:00:16.1]} 37...
Nxe1 {[%clk 0:00:16.6]} 38. Rxe1 {[%clk 0:00:15.7]} 38... Rc7 {[%clk 0:00:15.6]}
39. Ke2 {[%clk 0:00:13.6]} 39... Rc5 {[%clk 0:00:14.5]} 40. Kf3 {[%clk
0:00:13.6]} 40... Rxd5 {[%clk 0:00:14.6]} 41. Kxf4 {[%clk 0:00:09.8]} 41... Rd2
{[%clk 0:00:13.7]} 42. f3 {[%clk 0:00:09.2]} 42... Rxb2 {[%clk 0:00:13.9]} 43.
e5 {[%clk 0:00:09.3]} 43... Rxb3 {[%clk 0:00:14.3]} 44. e6 {[%clk 0:00:09.4]}
44... Rb5 {[%clk 0:00:13.7]} 0-1

[Event "Late-Titled-Tuesday-Blitz-May-07-2024"]
[Site "Chess.com"]
[Date "2024.05.07"]
[Round "7"]
[White "chess_sharparchitect"]
[Black "FredddieCroderg"]
[Result "1-0"]
[WhiteElo "2295"]
[BlackElo "2400"]
[TimeControl "180+1"]
[EndTime "15:17:09 PDT"]
[Termination "chess_sharparchitect won by checkmate"]

1. c4 {[%clk 0:03:00.9]} 1... a5 {[%clk 0:02:56.6]} 2. Nc3 {[%clk 0:02:58.7]}
2... Na6 {[%clk 0:02:56.2]} 3. Nf3 {[%clk 0:02:55.4]} 3... d6 {[%clk 0:02:55.9]}
4. d4 {[%clk 0:02:53.4]} 4... f6 {[%clk 0:02:51.7]} 5. e4 {[%clk 0:02:42.4]}
5... e5 {[%clk 0:02:51.4]} 6. Be2 {[%clk 0:02:40]} 6... Be6 {[%clk 0:02:49.9]}
7. Be3 {[%clk 0:02:37.1]} 7... Nh6 {[%clk 0:02:48.5]} 8. h3 {[%clk 0:02:32.8]}
8... Nf7 {[%clk 0:02:47.9]} 9. Qd2 {[%clk 0:02:20.2]} 9... g6 {[%clk 0:02:43.1]}
10. O-O {[%clk 0:02:14.3]} 10... Bg7 {[%clk 0:02:42.7]} 11. Nd5 {[%clk
0:02:04.9]} 11... c6 {[%clk 0:02:35.7]} 12. Nc3 {[%clk 0:01:48.5]} 12... Qe7
{[%clk 0:02:31.2]} 13. d5 {[%clk 0:01:43.6]} 13... cxd5 {[%clk 0:02:30.8]} 14.
Nxd5 {[%clk 0:01:23.7]} 14... Bxd5 {[%clk 0:02:25.3]} 15. Qxd5 {[%clk
0:01:23.5]} 15... O-O {[%clk 0:02:21.1]} 16. Rfd1 {[%clk 0:01:22.3]} 16... Nc7
{[%clk 0:02:09.5]} 17. Qd2 {[%clk 0:01:13.3]} 17... Ne6 {[%clk 0:01:59.7]} 18.
b3 {[%clk 0:01:08.1]} 18... a4 {[%clk 0:01:58.4]} 19. b4 {[%clk 0:00:51.3]}
19... a3 {[%clk 0:01:58.3]} 20. Rac1 {[%clk 0:00:48.9]} 20... Kh8 {[%clk
0:01:54.4]} 21. c5 {[%clk 0:00:46.2]} 21... dxc5 {[%clk 0:01:54.1]} 22. bxc5
{[%clk 0:00:44.5]} 22... Rfd8 {[%clk 0:01:53.1]} 23. Qb4 {[%clk 0:00:41.3]}
23... Rxd1+ {[%clk 0:01:39.5]} 24. Bxd1 {[%clk 0:00:39.2]} 24... Nfd8 {[%clk
0:01:29.5]} 25. Bb3 {[%clk 0:00:34.8]} 25... Nc6 {[%clk 0:01:24.2]} 26. Qc4
{[%clk 0:00:34.6]} 26... Re8 {[%clk 0:01:08.2]} 27. Rd1 {[%clk 0:00:31.1]} 27...
Nc7 {[%clk 0:00:53.1]} 28. Qa4 {[%clk 0:00:21.6]} 28... Ra8 {[%clk 0:00:42.1]}
29. Qc4 {[%clk 0:00:21.7]} 29... Na5 {[%clk 0:00:39.4]} 30. Qc3 {[%clk
0:00:21.8]} 30... Nxb3 {[%clk 0:00:36.2]} 31. Qxb3 {[%clk 0:00:22]} 31... Ne6
{[%clk 0:00:24.1]} 32. Rd6 {[%clk 0:00:20.2]} 32... Rd8 {[%clk 0:00:16.4]} 33.
Qxe6 {[%clk 0:00:16.8]} 33... Qxe6 {[%clk 0:00:06.7]} 34. Rxe6 {[%clk
0:00:16.6]} 34... Rd1+ {[%clk 0:00:06]} 35. Kh2 {[%clk 0:00:16.6]} 35... Kg8
{[%clk 0:00:06]} 36. Re8+ {[%clk 0:00:13.5]} 36... Kf7 {[%clk 0:00:05.8]} 37.
Ra8 {[%clk 0:00:13.8]} 37... Ra1 {[%clk 0:00:06.7]} 38. Rxa3 {[%clk 0:00:13.2]}
38... Bf8 {[%clk 0:00:06.3]} 39. Ra7 {[%clk 0:00:12.8]} 39... Ke6 {[%clk
0:00:05.8]} 40. Rxb7 {[%clk 0:00:12.4]} 40... Rxa2 {[%clk 0:00:06]} 41. Rxh7
{[%clk 0:00:11.9]} 41... f5 {[%clk 0:00:06]} 42. Ng5+ {[%clk 0:00:10.9]} 42...
Kf6 {[%clk 0:00:06]} 43. Rf7# {[%clk 0:00:10.2]} 1-0

[Event "Late-Titled-Tuesday-Blitz-May-07-2024"]
[Site "Chess.com"]
[Date "2024.05.07"]
[Round "7"]
[White "dolynachess"]
[Black "lluiss"]
[Result "1/2-1/2"]
[WhiteElo "2537"]
[BlackElo "2253"]
[TimeControl "180+1"]
[EndTime "15:17:11 PDT"]
[Termination "Game drawn by stalemate"]

1. d4 {[%clk 0:03:00.9]} 1... Nf6 {[%clk 0:02:56.7]} 2. c4 {[%clk 0:02:55.2]}
2... g6 {[%clk 0:02:56.5]} 3. Nc3 {[%clk 0:02:53.3]} 3... d5 {[%clk 0:02:56.6]}
4. cxd5 {[%clk 0:02:54.2]} 4... Nxd5 {[%clk 0:02:56.5]} 5. e4 {[%clk 0:02:55.1]}
5... Nxc3 {[%clk 0:02:56.7]} 6. bxc3 {[%clk 0:02:56]} 6... Bg7 {[%clk
0:02:56.7]} 7. Bc4 {[%clk 0:02:56.9]} 7... O-O {[%clk 0:02:55.7]} 8. Ne2 {[%clk
0:02:57.8]} 8... c5 {[%clk 0:02:55.8]} 9. Be3 {[%clk 0:02:56.7]} 9... Nc6 {[%clk
0:02:55.9]} 10. h4 {[%clk 0:02:55.7]} 10... cxd4 {[%clk 0:02:53.9]} 11. cxd4
{[%clk 0:02:56.6]} 11... Qa5+ {[%clk 0:02:53.7]} 12. Kf1 {[%clk 0:02:56.7]}
12... h5 {[%clk 0:02:33]} 13. f3 {[%clk 0:02:53]} 13... e6 {[%clk 0:02:23]} 14.
e5 {[%clk 0:02:44.5]} 14... Rd8 {[%clk 0:02:20.5]} 15. Qb3 {[%clk 0:02:36.7]}
15... Qc7 {[%clk 0:02:09.5]} 16. Rc1 {[%clk 0:01:47.4]} 16... Na5 {[%clk
0:02:05.9]} 17. Qd3 {[%clk 0:01:38.2]} 17... Nxc4 {[%clk 0:01:57]} 18. Qxc4
{[%clk 0:01:37.4]} 18... Qa5 {[%clk 0:01:51.2]} 19. g4 {[%clk 0:01:30.1]} 19...
Bd7 {[%clk 0:01:41.8]} 20. gxh5 {[%clk 0:01:29.3]} 20... Rac8 {[%clk 0:01:29.3]}
21. Qb3 {[%clk 0:01:28.6]} 21... Rxc1+ {[%clk 0:01:22.1]} 22. Bxc1 {[%clk
0:01:28.7]} 22... Qa6 {[%clk 0:01:19.2]} 23. hxg6 {[%clk 0:01:20.5]} 23... Bb5
{[%clk 0:01:16.6]} 24. gxf7+ {[%clk 0:01:18.3]} 24... Kxf7 {[%clk 0:01:17.5]}
25. Qe3 {[%clk 0:01:02.8]} 25... Bxe2+ {[%clk 0:01:00.7]} 26. Qxe2 {[%clk
0:01:00.6]} 26... Qxe2+ {[%clk 0:01:00.7]} 27. Kxe2 {[%clk 0:01:01.5]} 27...
Rxd4 {[%clk 0:01:00.7]} 28. f4 {[%clk 0:00:36.8]} 28... Bh6 {[%clk 0:00:58.9]}
29. Rd1 {[%clk 0:00:20.6]} 29... Rxd1 {[%clk 0:00:52.3]} 30. Kxd1 {[%clk
0:00:21.5]} 30... Kg6 {[%clk 0:00:52.3]} 31. Ke2 {[%clk 0:00:21.6]} 31... Kf5
{[%clk 0:00:52.5]} 32. Kf3 {[%clk 0:00:22.1]} 32... b5 {[%clk 0:00:48]} 33. Bd2
{[%clk 0:00:19.1]} 33... a6 {[%clk 0:00:45.3]} 34. h5 {[%clk 0:00:16.3]} 34...
Bg7 {[%clk 0:00:44.8]} 35. Be3 {[%clk 0:00:15.4]} 35... a5 {[%clk 0:00:41.8]}
36. Bd2 {[%clk 0:00:14.8]} 36... b4 {[%clk 0:00:40.6]} 37. Bc1 {[%clk
0:00:08.2]} 37... a4 {[%clk 0:00:38.9]} 38. Bd2 {[%clk 0:00:07.7]} 38... b3
{[%clk 0:00:38.9]} 39. axb3 {[%clk 0:00:08.6]} 39... axb3 {[%clk 0:00:38.9]} 40.
Bc3 {[%clk 0:00:08.9]} 40... Bh6 {[%clk 0:00:38.7]} 41. Ke2 {[%clk 0:00:07.6]}
41... Bxf4 {[%clk 0:00:37.6]} 42. Kd3 {[%clk 0:00:07.9]} 42... Kg5 {[%clk
0:00:34.3]} 43. Kc4 {[%clk 0:00:07]} 43... Kxh5 {[%clk 0:00:32.9]} 44. Kxb3
{[%clk 0:00:07]} 44... Kg5 {[%clk 0:00:33.2]} 45. Kc4 {[%clk 0:00:07.1]} 45...
Kf5 {[%clk 0:00:33.4]} 46. Kd3 {[%clk 0:00:07.3]} 46... Bxe5 {[%clk 0:00:33.5]}
47. Bxe5 {[%clk 0:00:08.2]} 47... Kxe5 {[%clk 0:00:33.8]} 48. Ke3 {[%clk
0:00:09.1]} 48... Kd5 {[%clk 0:00:34]} 49. Kd3 {[%clk 0:00:09.1]} 49... e5
{[%clk 0:00:32.2]} 50. Ke3 {[%clk 0:00:09.6]} 50... e4 {[%clk 0:00:32]} 51. Ke2
{[%clk 0:00:09.6]} 51... Ke5 {[%clk 0:00:32.2]} 52. Ke3 {[%clk 0:00:10.5]} 52...
Kf5 {[%clk 0:00:32.4]} 53. Ke2 {[%clk 0:00:10.5]} 53... Kf4 {[%clk 0:00:33]} 54.
Kf2 {[%clk 0:00:10.7]} 54... e3+ {[%clk 0:00:33.9]} 55. Ke2 {[%clk 0:00:10.9]}
55... Ke4 {[%clk 0:00:34.8]} 56. Ke1 {[%clk 0:00:11.1]} 56... Kf4 {[%clk
0:00:35.4]} 57. Ke2 {[%clk 0:00:11.5]} 57... Ke4 {[%clk 0:00:35.1]} 58. Ke1
{[%clk 0:00:11.9]} 58... Kf3 {[%clk 0:00:36]} 59. Kf1 {[%clk 0:00:12.2]} 59...
e2+ {[%clk 0:00:36.9]} 60. Ke1 {[%clk 0:00:12.6]} 60... Ke3 {[%clk 0:00:37.5]}
1/2-1/2

[Event "Late-Titled-Tuesday-Blitz-May-07-2024"]
[Site "Chess.com"]
[Date "2024.05.07"]
[Round "7"]
[White "emeli_chess"]
[Black "nitpicker"]
[Result "1-0"]
[WhiteElo "2444"]
[BlackElo "2281"]
[TimeControl "180+1"]
[EndTime "15:17:12 PDT"]
[Termination "emeli_chess won on time"]

1. d4 {[%clk 0:02:59.5]} 1... Nf6 {[%clk 0:02:59.5]} 2. c4 {[%clk 0:02:59.4]}
2... e6 {[%clk 0:02:59.4]} 3. Nc3 {[%clk 0:02:59.2]} 3... Bb4 {[%clk 0:02:59.3]}
4. Qc2 {[%clk 0:02:58.9]} 4... d5 {[%clk 0:02:56.7]} 5. cxd5 {[%clk 0:02:57.9]}
5... exd5 {[%clk 0:02:55.2]} 6. Bg5 {[%clk 0:02:57]} 6... h6 {[%clk 0:02:46]} 7.
Bxf6 {[%clk 0:02:56.9]} 7... Qxf6 {[%clk 0:02:45.2]} 8. a3 {[%clk 0:02:57.1]}
8... Bxc3+ {[%clk 0:02:24]} 9. Qxc3 {[%clk 0:02:56.8]} 9... c6 {[%clk
0:02:19.5]} 10. e3 {[%clk 0:02:56.5]} 10... Bf5 {[%clk 0:02:16.8]} 11. Nf3
{[%clk 0:02:55.7]} 11... Nd7 {[%clk 0:02:16.6]} 12. b4 {[%clk 0:02:49.4]} 12...
a6 {[%clk 0:02:16.8]} 13. Be2 {[%clk 0:02:48.8]} 13... O-O {[%clk 0:02:15.4]}
14. O-O {[%clk 0:02:48.6]} 14... Rac8 {[%clk 0:02:15.9]} 15. Rfc1 {[%clk
0:02:46.5]} 15... Qd6 {[%clk 0:02:11.2]} 16. Ra2 {[%clk 0:02:43.2]} 16... f6
{[%clk 0:02:10.6]} 17. Ne1 {[%clk 0:02:35.4]} 17... Rfe8 {[%clk 0:02:08.7]} 18.
Nd3 {[%clk 0:02:34.1]} 18... Re7 {[%clk 0:01:28.3]} 19. Nc5 {[%clk 0:02:32.7]}
19... Nf8 {[%clk 0:01:26.5]} 20. Nxb7 {[%clk 0:02:23.1]} 20... Rxb7 {[%clk
0:01:24.4]} 21. Bxa6 {[%clk 0:02:23.2]} 21... Rbc7 {[%clk 0:01:09.8]} 22. Bxc8
{[%clk 0:02:22.9]} 22... Bxc8 {[%clk 0:01:06.8]} 23. Qc5 {[%clk 0:02:02.9]}
23... Qxc5 {[%clk 0:01:00.7]} 24. Rxc5 {[%clk 0:02:01.9]} 24... Nd7 {[%clk
0:00:54.3]} 25. Ra5 {[%clk 0:02:01.6]} 25... Nb6 {[%clk 0:00:50.8]} 26. Rc2
{[%clk 0:01:51.7]} 26... Kf8 {[%clk 0:00:46.1]} 27. Rcc5 {[%clk 0:01:37.4]}
27... Ke7 {[%clk 0:00:39.4]} 28. b5 {[%clk 0:01:11]} 28... Nc4 {[%clk
0:00:38.5]} 29. Ra8 {[%clk 0:01:08.2]} 29... Bb7 {[%clk 0:00:33]} 30. Rg8 {[%clk
0:01:03.3]} 30... Nxa3 {[%clk 0:00:25.9]} 31. Rxg7+ {[%clk 0:00:54.4]} 31... Kd6
{[%clk 0:00:26.1]} 32. Rxc7 {[%clk 0:00:53.8]} 32... Kxc7 {[%clk 0:00:25.6]} 33.
bxc6 {[%clk 0:00:53.7]} 33... Bxc6 {[%clk 0:00:24.8]} 34. Ra5 {[%clk 0:00:52.2]}
34... Nc4 {[%clk 0:00:22.6]} 35. Ra7+ {[%clk 0:00:50.8]} 35... Bb7 {[%clk
0:00:23.2]} 36. h4 {[%clk 0:00:49.3]} 36... Nd6 {[%clk 0:00:20.9]} 37. f3 {[%clk
0:00:47.1]} 37... Nf5 {[%clk 0:00:21]} 38. Kf2 {[%clk 0:00:46.1]} 38... Nxh4
{[%clk 0:00:20.4]} 39. Ra1 {[%clk 0:00:43.9]} 39... Nf5 {[%clk 0:00:19.6]} 40.
Rh1 {[%clk 0:00:42.7]} 40... Kd6 {[%clk 0:00:18.4]} 41. g4 {[%clk 0:00:42.5]}
41... Ne7 {[%clk 0:00:16.5]} 42. Rxh6 {[%clk 0:00:42.1]} 42... Ng8 {[%clk
0:00:13.7]} 43. Rg6 {[%clk 0:00:41.1]} 43... Ne7 {[%clk 0:00:11.9]} 44. Rxf6+
{[%clk 0:00:41.3]} 44... Kd7 {[%clk 0:00:12.4]} 45. g5 {[%clk 0:00:39.7]} 45...
Ke8 {[%clk 0:00:12.5]} 46. Rb6 {[%clk 0:00:38.3]} 46... Bc8 {[%clk 0:00:12.4]}
47. Rb8 {[%clk 0:00:37.2]} 47... Kf7 {[%clk 0:00:11.2]} 48. f4 {[%clk 0:00:36]}
48... Bf5 {[%clk 0:00:10.9]} 49. Rb7 {[%clk 0:00:35.2]} 49... Ke6 {[%clk
0:00:09.5]} 50. Kf3 {[%clk 0:00:34]} 50... Be4+ {[%clk 0:00:06.8]} 51. Kg4
{[%clk 0:00:33.3]} 51... Bf5+ {[%clk 0:00:07]} 52. Kh5 {[%clk 0:00:33]} 52...
Bg6+ {[%clk 0:00:01.7]} 53. Kh6 {[%clk 0:00:33]} 1-0